fUST/lending_fUST_20250619
["ID","MTS","AMOUNT","RATE_DAILY","PERIOD"]
[366543187,1750312238846,-2383.12,0.00022191,6]
[366543188,1750312238856,-460.0,0.00022191,6]
[366543189,1750312238865,-420.04128118,0.00022191,6]
[366543190,1750312238874,-460.0,0.00022191,6]
[366543191,1750312238883,-420.0,0.00022191,6]
[366543192,1750312238897,-409.75804372,0.00022191,6]
[366543193,1750312238914,-460.0,0.00022191,6]
[366543194,1750312238923,-460.0,0.00022191,6]
[366543195,1750312238933,-745.6,0.00022191,6]
[366543196,1750312238942,-3257.09,0.00022191,6]
[366543197,1750312238951,-390.0,0.00022191,6]
[366543198,1750312238962,-575.69,0.00022191,6]
[366543199,1750312238972,-400.0,0.00022191,6]
[366543200,1750312238984,-400.0,0.00022191,6]
[366543201,1750312238994,-400.0,0.00022191,6]
[366543202,1750312239003,-400.0,0.00022191,6]
[366543203,1750312239013,-460.0,0.00022191,6]
[366543204,1750312239022,-400.0,0.00022191,6]
[366543205,1750312239031,-400.0,0.00022191,6]
[366543206,1750312239041,-460.0,0.00022191,6]
[366543207,1750312239050,-429.06402552,0.00022191,6]
[366543208,1750312239060,-3321.22,0.00022191,6]
[366543209,1750312239070,-460.0,0.00022191,6]
[366543210,1750312239081,-577.52,0.00022191,6]
[366543211,1750312239090,-1277.97,0.00022191,6]
[366543212,1750312239100,-400.0,0.00022191,6]
[366543213,1750312239109,-460.0,0.00022191,6]
[366543214,1750312239119,-400.0,0.00022191,6]
[366543215,1750312239128,-460.0,0.00022191,6]
[366543216,1750312239137,-400.0,0.00022191,6]
[366543217,1750312239146,-460.0,0.00022191,6]
[366543218,1750312239155,-460.0,0.00022191,6]
[366543219,1750312239164,-408.037127,0.00022191,6]
[366543220,1750312239173,-400.0,0.00022191,6]
[366543221,1750312239183,-460.0,0.00022191,6]
[366543222,1750312239192,-400.0,0.00022191,6]
[366543223,1750312239203,-460.0,0.00022191,6]
[366543224,1750312239213,-460.0,0.00022191,6]
[366543225,1750312239223,-400.0,0.00022191,6]
[366543226,1750312239232,-460.0,0.00022191,6]
[366543227,1750312239243,-400.0,0.00022191,6]
[366543228,1750312239253,-400.0,0.00022191,6]
[366543229,1750312239262,-400.0,0.00022191,6]
[366543230,1750312239271,-4070.67,0.00022191,6]
[366543231,1750312239280,-1181.86,0.00022191,6]
[366543232,1750312239291,-460.0,0.00022191,6]
[366543233,1750312239301,-460.0,0.00022191,6]
[366543234,1750312239310,-460.0,0.00022191,6]
[366543235,1750312239322,-460.0,0.00022191,6]
[366543236,1750312239332,-482.75,0.00022191,6]
[366543237,1750312239342,-460.0,0.00022191,6]
[366543238,1750312239352,-400.0,0.00022191,6]
[366543239,1750312239363,-400.0,0.00022191,6]
[366543240,1750312239372,-460.0,0.00022191,6]
[366543241,1750312239386,-810.76,0.00022191,6]
[366543242,1750312239396,-538.06,0.00022191,6]
[366543243,1750312239406,-937.39,0.00022191,6]
[366543244,1750312239415,-460.0,0.00022191,6]
[366543245,1750312239425,-485.74,0.00022191,6]
[366543246,1750312239434,-460.0,0.00022191,6]
[366543247,1750312239444,-460.0,0.00022191,6]
[366543248,1750312239453,-460.0,0.00022191,6]
[366543249,1750312239462,-460.0,0.00022191,6]
[366543250,1750312239471,-460.0,0.00022191,6]
[366543251,1750312239481,-460.0,0.00022191,6]
[366543252,1750312239493,-493.64,0.00022191,6]
[366543253,1750312239502,-400.0,0.00022191,6]
[366543254,1750312239512,-406.84384259,0.00022191,6]
[366543255,1750312239521,-460.0,0.00022191,6]
[366543256,1750312239530,-460.0,0.00022191,6]
[366543257,1750312239540,-460.0,0.00022191,6]
[366543258,1750312239549,-725.2,0.00022191,6]
[366543259,1750312239559,-514.98,0.00022191,6]
[366543260,1750312239568,-460.0,0.00022191,6]
[366543261,1750312239578,-400.0,0.00022191,6]
[366543262,1750312239588,-460.0,0.00022191,6]
[366543263,1750312239597,-460.0,0.00022191,6]
[366543264,1750312239607,-460.0,0.00022191,6]
[366543265,1750312239617,-969.54,0.00022191,6]
[366543266,1750312239627,-460.0,0.00022191,6]
[366543267,1750312239636,-460.0,0.00022191,6]
[366543268,1750312239646,-460.0,0.00022191,6]
[366543269,1750312239655,-1449.41,0.00022191,6]
[366543270,1750312239665,-460.0,0.00022191,6]
[366543271,1750312239675,-400.0,0.00022191,6]
[366543272,1750312239685,-460.0,0.00022191,6]
[366543273,1750312239695,-460.0,0.00022191,6]
[366543274,1750312239705,-460.0,0.00022191,6]
[366543275,1750312239715,-400.0,0.00022191,6]
[366543276,1750312239725,-400.0,0.00022191,6]
[366543277,1750312239734,-400.0,0.00022191,6]
[366543278,1750312239743,-400.0,0.00022191,6]
[366543279,1750312239753,-460.0,0.00022191,6]
[366543280,1750312239762,-460.0,0.00022191,6]
[366543281,1750312239772,-400.0,0.00022191,6]
[366543282,1750312239781,-460.0,0.00022191,6]
[366543283,1750312239792,-1450.16,0.00022191,6]
[366543284,1750312239801,-460.0,0.00022191,6]
[366543285,1750312239811,-400.98053627,0.00022191,6]
[366543286,1750312239821,-460.0,0.00022191,6]
[366543287,1750312239831,-460.0,0.00022191,6]
[366543288,1750312239843,-400.0,0.00022191,6]
[366543289,1750312239852,-460.0,0.00022191,6]
[366543290,1750312239862,-402.99768373,0.00022191,6]
[366543291,1750312239872,-400.0,0.00022191,6]
[366543292,1750312239881,-511.82,0.00022191,6]
[366543293,1750312239891,-460.0,0.00022191,6]
[366543294,1750312239901,-2327.61,0.00022191,6]
[366543295,1750312239910,-702.0,0.00022191,6]
[366543296,1750312239920,-460.0,0.00022191,6]
[366543297,1750312239929,-2846.52,0.00022191,6]
[366543298,1750312239939,-400.32668542,0.00022191,6]
[366543299,1750312239948,-1736.04,0.00022191,6]
[366543300,1750312239957,-750.56,0.00022191,6]
[366543301,1750312239966,-460.0,0.00022191,6]
[366543302,1750312239975,-460.0,0.00022191,6]
[366543303,1750312239985,-2294.54,0.00022191,6]
[366543304,1750312239994,-390.0,0.00022191,6]
[366543305,1750312240004,-460.0,0.00022191,6]
[366543306,1750312240013,-300.0,0.00022191,2]
[366543308,1750312240022,-460.0,0.00022191,6]
[366543310,1750312240031,-532.48,0.00022191,6]
[366543312,1750312240041,-400.0,0.00022191,6]
[366543314,1750312240050,-460.0,0.00022191,6]
[366543316,1750312240060,-553.56,0.00022191,6]
[366543318,1750312240069,-3339.81,0.00022199,6]
[366543320,1750312240078,-3339.81,0.00022199,6]
[366543322,1750312240088,-3339.81,0.00022199,6]
[366543324,1750312240097,-3339.81,0.00022199,6]
[366543326,1750312240106,-3339.81,0.00022199,6]
[366543328,1750312240116,-3340.02305283,0.00022199,6]
[366543330,1750312240125,-65713.52,0.000222,7]
[366543332,1750312240134,-845.93775772,0.000222,7]
[366543334,1750312240143,-679.06678716,0.00022374,2]
[366543336,1750312240153,-834.07,0.00022433,2]
[366543338,1750312240162,-406.09893897,0.00022464,6]
[366543340,1750312240171,-400.0,0.00022464,6]
[366543342,1750312240181,-309.28647041,0.00022464,6]
[366543344,1750312240191,-460.0,0.00022464,6]
[366543346,1750312240200,-410.25958448,0.00022464,6]
[366543348,1750312240210,-400.0,0.00022464,6]
[366543350,1750312240219,-406.88977384,0.00022464,6]
[366543352,1750312240228,-172.99714916,0.00022464,6]
[366543354,1750312240239,-261.66163473,0.00022464,6]
[366543356,1750312240250,-475.0,0.00022464,6]
[366543358,1750312240258,-528.08,0.00022464,6]
[366543359,1750312240267,-460.0,0.00022464,6]
[366543360,1750312240277,-460.0,0.00022464,6]
[366543362,1750312240287,-460.0,0.00022464,6]
[366543364,1750312240296,-270.95536229,0.00022464,6]
[366543365,1750312240306,-607.8042531,0.00022464,6]
[366543366,1750312240315,-460.0,0.00022464,6]
[366543367,1750312240326,-437.83617497,0.00022464,6]
[366543368,1750312240335,-460.0,0.00022464,6]
[366543372,1750312240455,-460.0,0.00022464,6]
[366543373,1750312240465,-386.42245302,0.00022464,6]
[366543374,1750312240475,-460.0,0.00022464,6]
[366543375,1750312240486,-460.0,0.00022464,6]
[366543376,1750312240495,-460.0,0.00022464,6]
[366543377,1750312240505,-460.0,0.00022464,6]
[366543378,1750312240515,-460.0,0.00022464,6]
[366543379,1750312240524,-460.0,0.00022464,6]
[366543380,1750312240534,-460.0,0.00022464,6]
[366543381,1750312240544,-460.0,0.00022464,6]
[366543382,1750312240553,-1418.62,0.00022464,6]
[366543383,1750312240562,-306.26434378,0.00022464,6]
[366543384,1750312240572,-460.0,0.00022464,6]
[366543385,1750312240582,-460.0,0.00022464,6]
[366543386,1750312240591,-821.28,0.00022464,6]
[366543387,1750312240600,-460.0,0.00022464,6]
[366543388,1750312240609,-460.0,0.00022464,6]
[366543389,1750312240619,-1718.46,0.00022464,6]
[366543390,1750312240628,-400.0,0.00022464,6]
[366543391,1750312240639,-4299.95,0.00022464,6]
[366543392,1750312240648,-326.39791596,0.00022464,6]
[366543393,1750312240657,-415.76305666,0.00022464,6]
[366543394,1750312240665,-368.5965385,0.00022464,6]
[366543395,1750312240674,-400.0,0.00022464,6]
[366543396,1750312240683,-420.0,0.00022464,6]
[366543397,1750312240692,-1388.55,0.00022464,6]
[366543398,1750312240701,-406.06356474,0.00022464,6]
[366543399,1750312240721,-400.0,0.00022464,6]
[366543400,1750312240731,-460.0,0.00022464,6]
[366543401,1750312240740,-460.0,0.00022464,6]
[366543402,1750312240750,-460.0,0.00022464,6]
[366543403,1750312240760,-460.0,0.00022465,6]
[366543404,1750312240770,-390.0,0.00022465,6]
[366543405,1750312240779,-460.0,0.00022465,6]
[366543406,1750312240789,-460.0,0.00022465,6]
[366543407,1750312240799,-689.04,0.00022465,6]
[366543408,1750312240808,-460.0,0.00022465,6]
[366543409,1750312240817,-404.11337466,0.00022465,6]
[366543410,1750312240827,-314.8338154,0.00022465,6]
[366543411,1750312240836,-286.73683971,0.00022465,6]
[366543412,1750312240846,-460.0,0.00022465,6]
[366543413,1750312240856,-460.0,0.00022465,6]
[366543414,1750312240866,-460.0,0.00022465,6]
[366543415,1750312240875,-460.0,0.00022465,6]
[366543416,1750312240885,-370.0,0.00022465,6]
[366543417,1750312240894,-607.13,0.00022465,6]
[366543418,1750312240904,-571.32,0.00022465,6]
[366543419,1750312240914,-460.0,0.00022465,6]
[366543420,1750312240923,-460.0,0.00022465,6]
[366543421,1750312240933,-1615.34899535,0.00022465,6]
[366543422,1750312241510,-166.36879867,0.00021064,2]
[366543423,1750312241520,-460.0,0.00021917,6]
[366543424,1750312241529,-460.0,0.00021917,6]
[366543425,1750312241539,-460.0,0.00022191,6]
[366543426,1750312241549,-31.71100465,0.00022465,6]
[366543427,1750312241558,-310.0,0.00022465,6]
[366543428,1750312241567,-460.0,0.00022465,6]
[366543429,1750312241577,-460.0,0.00022465,6]
[366543430,1750312241587,-460.0,0.00022465,6]
[366543431,1750312241596,-460.0,0.00022465,6]
[366543432,1750312241606,-796.26,0.00022465,6]
[366543433,1750312241615,-460.0,0.00022465,6]
[366543434,1750312241625,-460.0,0.00022465,6]
[366543435,1750312241634,-382.27558329,0.00022465,6]
[366543436,1750312241644,-460.0,0.00022465,6]
[366543437,1750312241653,-103.22479313,0.00022465,6]
[366543438,1750312241665,-336.77520687,0.00022465,6]
[366543439,1750312241675,-460.0,0.00022465,6]
[366543440,1750312241684,-460.0,0.00022465,6]
[366543441,1750312241693,-403.51486158,0.00022465,6]
[366543442,1750312241702,-460.0,0.00022465,6]
[366543443,1750312241719,-460.0,0.00022465,6]
[366543444,1750312241729,-794.0,0.00022465,6]
[366543445,1750312241739,-460.0,0.00022465,6]
[366543446,1750312241748,-500.0,0.00022465,6]
[366543447,1750312241761,-430.0,0.00022465,6]
[366543448,1750312241773,-206.41853793,0.00022465,6]
[366543449,1750312241785,-253.58146207,0.00022465,6]
[366543450,1750312241795,-24.63846589,0.00022465,6]
[366543451,1750312241806,-435.36153411,0.00022465,6]
[366543452,1750312241816,-523.5,0.00022465,6]
[366543453,1750312241825,-460.0,0.00022465,6]
[366543454,1750312241834,-460.0,0.00022465,6]
[366543455,1750312241845,-420.0,0.00022465,6]
[366543456,1750312241854,-460.0,0.00022465,6]
[366543457,1750312241863,-460.0,0.00022465,6]
[366543458,1750312241874,-460.0,0.00022465,6]
[366543459,1750312241884,-2383.12,0.00022465,6]
[366543460,1750312241893,-400.0,0.00022465,6]
[366543461,1750312241902,-460.0,0.00022465,6]
[366543462,1750312241912,-495.33152296,0.00022465,6]
[366543463,1750312241922,-460.0,0.00022465,6]
[366543464,1750312241931,-745.6,0.00022465,6]
[366543465,1750312241941,-3257.09,0.00022465,6]
[366543466,1750312241950,-575.69,0.00022465,6]
[366543467,1750312241960,-460.0,0.00022465,6]
[366543468,1750312241969,-460.0,0.00022465,6]
[366543469,1750312241979,-3321.22,0.00022465,6]
[366543470,1750312241988,-344.96000628,0.00022465,6]
[366543471,1750312241998,-577.52,0.00022465,6]
[366543472,1750312242008,-1277.97,0.00022465,6]
[366543473,1750312242018,-460.0,0.00022465,6]
[366543474,1750312242028,-460.0,0.00022465,6]
[366543475,1750312242038,-360.0,0.00022465,6]
[366543476,1750312242047,-420.0,0.00022465,6]
[366543477,1750312242057,-460.0,0.00022465,6]
[366543478,1750312242066,-263.76986465,0.00022465,6]
[366543479,1750312242075,-460.0,0.00022465,6]
[366543480,1750312242085,-460.0,0.00022465,6]
[366543481,1750312242094,-4070.67,0.00022465,6]
[366543482,1750312242104,-1181.86,0.00022465,6]
[366543483,1750312242114,-460.0,0.00022465,6]
[366543484,1750312242123,-370.0,0.00022465,6]
[366543485,1750312242133,-329.75239953,0.00022465,6]
[366543486,1750312242142,-460.0,0.00022465,6]
[366543487,1750312242152,-482.75,0.00022465,6]
[366543488,1750312242161,-460.0,0.00022465,6]
[366543489,1750312242171,-460.0,0.00022465,6]
[366543490,1750312242180,-810.76,0.00022465,6]
[366543491,1750312242189,-538.06,0.00022465,6]
[366543492,1750312242199,-937.39,0.00022465,6]
[366543493,1750312242208,-378.77042877,0.00022465,6]
[366543494,1750312242219,-485.74,0.00022465,6]
[366543495,1750312242228,-460.0,0.00022465,6]
[366543496,1750312242238,-460.0,0.00022465,6]
[366543497,1750312242251,-460.0,0.00022465,6]
[366543498,1750312242261,-460.0,0.00022465,6]
[366543499,1750312242270,-460.0,0.00022465,6]
[366543500,1750312242283,-493.64,0.00022465,6]
[366543501,1750312242294,-348.58803234,0.00022465,6]
[366543502,1750312242303,-460.0,0.00022465,6]
[366543503,1750312242313,-460.0,0.00022465,6]
[366543504,1750312242322,-725.2,0.00022465,6]
[366543505,1750312242331,-514.98,0.00022465,6]
[366543506,1750312242341,-460.0,0.00022465,6]
[366543507,1750312242350,-460.0,0.00022465,6]
[366543508,1750312242360,-457.84597645,0.00022465,6]
[366543509,1750312242370,-969.54,0.00022465,6]
[366543510,1750312242379,-460.0,0.00022465,6]
[366543511,1750312242388,-460.0,0.00022465,6]
[366543512,1750312242398,-460.0,0.00022465,6]
[366543513,1750312242407,-1449.41,0.00022465,6]
[366543514,1750312242416,-253.11793331,0.00022465,6]
[366543515,1750312242426,-460.0,0.00022465,6]
[366543516,1750312242435,-460.0,0.00022465,6]
[366543517,1750312242445,-460.0,0.00022465,6]
[366543518,1750312242455,-460.0,0.00022465,6]
[366543519,1750312242466,-430.0,0.00022465,6]
[366543520,1750312242476,-578.59671348,0.00022465,6]
[366543521,1750312242486,-460.0,0.00022465,6]
[366543522,1750312242496,-1450.16,0.00022465,6]
[366543523,1750312242506,-460.0,0.00022465,6]
[366543524,1750312242515,-460.0,0.00022465,6]
[366543525,1750312242525,-460.0,0.00022465,6]
[366543526,1750312242535,-460.0,0.00022465,6]
[366543527,1750312242546,-511.82,0.00022465,6]
[366543528,1750312242555,-343.45204961,0.00022465,6]
[366543529,1750312242565,-2327.61,0.00022465,6]
[366543530,1750312242576,-702.0,0.00022465,6]
[366543531,1750312242587,-2846.52,0.00022465,6]
[366543532,1750312242596,-1736.04,0.00022465,6]
[366543533,1750312242606,-750.56,0.00022465,6]
[366543534,1750312242616,-402.83896586,0.00022465,6]
[366543535,1750312242626,-460.0,0.00022465,6]
[366543536,1750312242636,-2294.54,0.00022465,6]
[366543537,1750312242646,-460.0,0.00022465,6]
[366543538,1750312242656,-300.0,0.00022465,2]
[366543539,1750312242666,-460.0,0.00022465,6]
[366543540,1750312242676,-532.48,0.00022465,6]
[366543541,1750312242686,-460.0,0.00022465,6]
[366543542,1750312242696,-553.56,0.00022465,6]
[366543543,1750312242706,-460.0,0.00022465,6]
[366543544,1750312242718,-794.0,0.00022492,6]
[366543545,1750312242728,-506.21385254,0.00022492,6]
[366543546,1750312242739,-794.0,0.0002252,6]
[366543547,1750312242748,-1000.0,0.00022521,2]
[366543550,1750312242880,-794.0,0.00022547,6]
[366543552,1750312242891,-794.0,0.00022575,6]
[366543554,1750312242901,-420.0,0.00022586,2]
[366543555,1750312242911,-420.0,0.00022588,2]
[366543556,1750312242921,-794.0,0.00022602,6]
[366543557,1750312242930,-794.0,0.00022629,6]
[366543558,1750312242940,-794.0,0.00022657,6]
[366543560,1750312242952,-679.06678716,0.00022683,2]
[366543562,1750312242962,-794.0,0.00022684,6]
[366543563,1750312242972,-794.0,0.00022712,6]
[366543564,1750312242981,-793.40262726,0.00022721,2]
[366543565,1750312242991,-504.53416508,0.00022721,2]
[366543566,1750312243001,-500.74970608,0.00022721,2]
[366543567,1750312243010,-1000.0,0.00022721,2]
[366543568,1750312243020,-1000.0,0.00022721,2]
[366543569,1750312243030,-503.29104018,0.00022721,2]
[366543570,1750312243040,-1000.0,0.00022721,2]
[366543571,1750312243049,-1200.0,0.00022721,2]
[366543572,1750312243059,-460.0,0.00022738,6]
[366543574,1750312243069,-420.0,0.00022738,6]
[366543576,1750312243078,-460.0,0.00022738,6]
[366543578,1750312243088,-460.0,0.00022738,6]
[366543580,1750312243098,-460.0,0.00022738,6]
[366543582,1750312243107,-460.0,0.00022738,6]
[366543583,1750312243117,-460.0,0.00022738,6]
[366543585,1750312243127,-385.52197514,0.00022738,6]
[366543586,1750312243136,-460.0,0.00022738,6]
[366543588,1750312243147,-389.25462796,0.00022738,6]
[366543590,1750312243156,-460.0,0.00022738,6]
[366543591,1750312243166,-530.41102978,0.00022738,6]
[366543592,1750312243176,-460.0,0.00022738,6]
[366543593,1750312243186,-460.0,0.00022738,6]
[366543595,1750312243195,-460.0,0.00022738,6]
[366543597,1750312243205,-460.0,0.00022738,6]
[366543598,1750312243215,-821.28,0.00022738,6]
[366543599,1750312243224,-460.0,0.00022738,6]
[366543600,1750312243234,-460.0,0.00022738,6]
[366543601,1750312243252,-1718.46,0.00022738,6]
[366543602,1750312243265,-4299.95,0.00022738,6]
[366543603,1750312243274,-1388.55,0.00022738,6]
[366543604,1750312243284,-445.44968143,0.00022738,6]
[366543605,1750312243295,-460.0,0.00022738,6]
[366543606,1750312243304,-794.0,0.00022739,6]
[366543607,1750312243314,-253.238149,0.00022739,7]
[366543608,1750312243324,-253.238149,0.00022739,7]
[366543609,1750312243336,-354.384871,0.00022739,7]
[366543610,1750312243345,-354.384871,0.00022739,7]
[366543611,1750312243354,-151.0,0.00022739,7]
[366543612,1750312243364,-151.0,0.00022739,7]
[366543613,1750312243373,-354.28826946,0.00022739,6]
[366543615,1750312243383,-460.0,0.00022739,6]
[366543616,1750312243393,-460.0,0.00022739,6]
[366543618,1750312243403,-689.04,0.00022739,6]
[366543619,1750312243412,-460.0,0.00022739,6]
[366543620,1750312243422,-460.0,0.00022739,6]
[366543621,1750312243432,-460.0,0.00022739,6]
[366543622,1750312243442,-460.0,0.00022739,6]
[366543623,1750312243454,-607.13,0.00022739,6]
[366543624,1750312243464,-571.32,0.00022739,6]
[366543625,1750312243474,-460.0,0.00022739,6]
[366543626,1750312243483,-460.0,0.00022739,6]
[366543627,1750312243493,-1647.06,0.00022739,6]
[366543628,1750312243504,-460.0,0.00022739,6]
[366543629,1750312243513,-460.0,0.00022739,6]
[366543630,1750312243523,-460.0,0.00022739,6]
[366543631,1750312243533,-460.0,0.00022739,6]
[366543632,1750312243543,-796.26,0.00022739,6]
[366543633,1750312243553,-460.0,0.00022739,6]
[366543634,1750312243563,-460.0,0.00022739,6]
[366543635,1750312243573,-460.0,0.00022739,6]
[366543636,1750312243582,-151.0,0.00022739,7]
[366543637,1750312243593,-310.0,0.00022739,6]
[366543638,1750312243604,-460.0,0.00022739,6]
[366543639,1750312243615,-430.0,0.00022739,6]
[366543640,1750312243625,-420.0,0.00022739,6]
[366543641,1750312243635,-460.0,0.00022739,6]
[366543642,1750312243645,-151.695862,0.00022739,7]
[366543643,1750312243656,-460.0,0.00022739,6]
[366543644,1750312243665,-460.0,0.00022739,6]
[366543645,1750312243675,-523.5,0.00022739,6]
[366543646,1750312243685,-460.0,0.00022739,6]
[366543647,1750312243695,-460.0,0.00022739,6]
[366543648,1750312243705,-460.0,0.00022739,6]
[366543649,1750312243715,-460.0,0.00022739,6]
[366543650,1750312243725,-2383.12,0.00022739,6]
[366543651,1750312243734,-460.0,0.00022739,6]
[366543652,1750312243744,-460.0,0.00022739,6]
[366543653,1750312243754,-745.6,0.00022739,6]
[366543654,1750312243764,-3257.09,0.00022739,6]
[366543655,1750312243774,-151.0,0.00022739,7]
[366543656,1750312243784,-575.69,0.00022739,6]
[366543657,1750312243794,-460.0,0.00022739,6]
[366543658,1750312243804,-431.93178584,0.00022739,6]
[366543659,1750312243813,-3321.22,0.00022739,6]
[366543660,1750312243823,-577.52,0.00022739,6]
[366543661,1750312243833,-276.660872,0.00022739,7]
[366543662,1750312243843,-151.0,0.00022739,7]
[366543663,1750312243853,-276.660872,0.00022739,7]
[366543664,1750312243862,-1277.97,0.00022739,6]
[366543665,1750312243872,-151.0,0.00022739,7]
[366543666,1750312243882,-153.420821,0.00022739,7]
[366543667,1750312243892,-460.0,0.00022739,6]
[366543668,1750312243902,-151.0,0.00022739,7]
[366543669,1750312243912,-480.5108392,0.00022739,6]
[366543670,1750312243922,-154.005717,0.00022739,7]
[366543671,1750312243932,-460.0,0.00022739,6]
[366543672,1750312243942,-460.0,0.00022739,6]
[366543673,1750312243952,-1181.86,0.00022739,6]
[366543674,1750312243963,-4070.67,0.00022739,6]
[366543675,1750312243973,-272.74694086,0.00022739,6]
[366543676,1750312243983,-151.0,0.00022739,7]
[366543677,1750312243993,-504.99052834,0.00022739,6]
[366543678,1750312244003,-482.75,0.00022739,6]
[366543679,1750312244013,-460.0,0.00022739,6]
[366543680,1750312244023,-151.0,0.00022739,7]
[366543681,1750312244034,-460.0,0.00022739,6]
[366543682,1750312244044,-810.76,0.00022739,6]
[366543683,1750312244054,-538.06,0.00022739,6]
[366543684,1750312244064,-937.39,0.00022739,6]
[366543685,1750312244074,-460.0,0.00022739,6]
[366543686,1750312244083,-485.74,0.00022739,6]
[366543687,1750312244093,-460.0,0.00022739,6]
[366543688,1750312244103,-460.0,0.00022739,6]
[366543689,1750312244113,-151.0,0.00022739,7]
[366543690,1750312244122,-460.0,0.00022739,6]
[366543691,1750312244132,-493.64,0.00022739,6]
[366543692,1750312244141,-151.0,0.00022739,7]
[366543693,1750312244151,-460.0,0.00022739,6]
[366543694,1750312244161,-460.0,0.00022739,6]
[366543695,1750312244170,-725.2,0.00022739,6]
[366543696,1750312244180,-514.98,0.00022739,6]
[366543697,1750312244189,-150.16568344,0.00022739,6]
[366543698,1750312244199,-969.54,0.00022739,6]
[366543699,1750312244208,-460.0,0.00022739,6]
[366543700,1750312244218,-460.0,0.00022739,6]
[366543701,1750312244227,-327.91429523,0.00022739,6]
[366543702,1750312244237,-1449.41,0.00022739,6]
[366543703,1750312244251,-420.0,0.00022739,6]
[366543704,1750312244260,-460.0,0.00022739,6]
[366543705,1750312244270,-460.0,0.00022739,6]
[366543706,1750312244279,-460.0,0.00022739,6]
[366543707,1750312244289,-1450.16,0.00022739,6]
[366543708,1750312244300,-151.0,0.00022739,7]
[366543709,1750312244309,-460.0,0.00022739,6]
[366543710,1750312244319,-460.0,0.00022739,6]
[366543711,1750312244330,-460.0,0.00022739,6]
[366543712,1750312244339,-511.82,0.00022739,6]
[366543713,1750312244348,-2327.61,0.00022739,6]
[366543714,1750312244358,-702.0,0.00022739,6]
[366543715,1750312244367,-2846.52,0.00022739,6]
[366543716,1750312244377,-1736.04,0.00022739,6]
[366543717,1750312244388,-750.56,0.00022739,6]
[366543718,1750312244397,-400.0,0.00022739,6]
[366543719,1750312244407,-2294.54,0.00022739,6]
[366543720,1750312244417,-460.0,0.00022739,6]
[366543721,1750312244426,-300.0,0.00022739,2]
[366543722,1750312244436,-691.996271,0.00022739,7]
[366543723,1750312244446,-532.48,0.00022739,6]
[366543724,1750312244455,-460.0,0.00022739,6]
[366543725,1750312244465,-553.56,0.00022739,6]
[366543726,1750312244474,-691.996271,0.00022739,7]
[366543727,1750312244483,-460.0,0.00022739,6]
[366543728,1750312244492,-794.0,0.00022766,6]
[366543729,1750312244502,-794.0,0.00022794,6]
[366543730,1750312244511,-794.0,0.00022821,6]
[366543731,1750312244520,-794.0,0.00022849,6]
[366543732,1750312244530,-794.0,0.00022876,6]
[366543733,1750312244539,-247.75963647,0.0002289,11]
[366543734,1750312244549,-794.0,0.00022903,6]
[366543735,1750312244559,-794.0,0.00022931,6]